bitfinex-derivatives/quotes_SOLF0:USTF0_20251109
["timestamp","ask_amount","ask_price","bid_price","bid_amount"]
[1762729617714,0.04372709,165.52,165.49,0.04338738]
[1762729618019,0.04372709,165.52,165.49,5.48288738]
[1762729618312,0.04372709,165.52,165.5,1.61]
[1762729618504,0.04372709,165.52,165.51,1.61]
[1762729620308,0.04372709,165.52,165.49,0.04338738]
[1762729620515,0.04372709,165.52,165.49,1.65338738]
[1762729620711,0.04372709,165.52,165.49,7.09278738]
[1762729620907,0.04372709,165.52,165.49,1.65338738]
[1762729621317,0.04372709,165.52,165.5,7.0491]
[1762729621623,0.04372709,165.52,165.49,0.04338738]
[1762729624617,2.98,165.51,165.41,1.59]
[1762729625121,2.98,165.48,165.35,1.59]
[1762729625713,0.03995626,165.43,165.4,1.63530295]
[1762729625914,0.03995626,165.43,165.4,0.04530295]
[1762729626118,0.03995626,165.43,165.4,1.63530295]
[1762729626316,3.01995626,165.43,165.4,0.04530295]
[1762729627315,2.98,165.42,165.32,1.59]
[1762729628426,0.03855805,165.39,165.32,7.035]
[1762729628925,0.03855805,165.39,165.32,1.59]
[1762729629224,0.03855805,165.39,165.28,1.59]
[1762729629423,0.04118589,165.35,165.28,1.59]
[1762729629623,0.04118589,165.35,165.34,1.59]
[1762729629828,0.0448816,165.36,165.34,1.59]
[1762729630026,0.04196887,165.37,165.34,1.59]
[1762729630425,0.04196887,165.37,165.35,5.4443]
[1762729630830,3.02196887,165.37,165.25,1.59]
[1762729631132,0.03998841,165.33,165.25,1.59]
[1762729631730,3.01998841,165.33,165.25,1.59]
[1762729632631,0.03998841,165.33,165.31,7.0356]
[1762729632832,0.04239517,165.34,165.31,1.59]
[1762729633033,2.98,165.46,165.31,1.62985716]
[1762729633226,2.98,165.5,165.38,1.59]
[1762729633734,2.98,165.5,165.42,5.4417]
[1762729634036,2.98,165.47,165.44,0.03849538]
[1762729635038,2.98,165.46,165.33,1.59]
[1762729635339,2.98,165.43,165.33,1.59]
[1762729635639,2.98,165.47,165.37,5.4433]
[1762729635840,2.98,165.47,165.33,1.59]
[1762729636036,0.04367526,165.42,165.33,1.59]
[1762729636239,0.04367526,165.42,165.36,5.4437]
[1762729637238,0.04367526,165.42,165.33,1.59]
[1762729637239,0.04367526,165.42,165.37,5.4434]
[1762729637435,0.04367526,165.42,165.3,4.28262896]
[1762729637436,0.04367526,165.42,165.38,1.59]
[1762729637637,2.98,165.55,165.45,5.4409]
[1762729638235,8.418,165.55,165.45,5.4409]
[1762729638444,2.98,165.55,165.43,1.59]
[1762729638642,0.03907423,165.51,165.47,0.04378257]
[1762729638834,0.03907423,165.51,165.48,1.59]
[1762729639139,0.03907423,165.51,165.47,0.04378257]
[1762729639333,0.03907423,165.51,165.47,1.63378257]
[1762729639537,0.03907423,165.51,165.5,1.59]
[1762729639733,2.98,165.6,165.5,1.59]
[1762729640139,2.98,165.6,165.54,5.438]
[1762729640644,0.04600434,165.59,165.55,0.03920734]
[1762729640946,3.02600434,165.59,165.55,0.03920734]
[1762729641341,0.04600434,165.59,165.55,1.62920734]
[1762729641539,4.28262896,165.69,165.55,1.62920734]
[1762729641540,2.98,165.67,165.55,1.62920734]
[1762729641842,2.98,165.71,165.55,1.59]
[1762729642040,2.98,165.71,165.58,1.59]
[1762729642628,0.04542247,165.66,165.63,0.0428764]
[1762729643939,3.02542247,165.66,165.63,0.0428764]
[1762729645446,0.04542247,165.66,165.63,0.0428764]
[1762729646045,3.02542247,165.66,165.63,0.0428764]
[1762729647050,8.45962247,165.66,165.63,0.0428764]
[1762729647246,8.45962247,165.66,165.53,1.59]
[1762729647437,8.4142,165.66,165.53,1.59]
[1762729647641,2.98,165.66,165.53,1.59]
[1762729647845,5.4347,165.65,165.56,5.4374]
[1762729648152,0.03962613,165.62,165.59,0.03984501]
[1762729648950,3.01962613,165.62,165.59,0.03984501]
[1762729649147,0.03962613,165.62,165.59,1.62984501]
[1762729649446,0.03962613,165.62,165.6,1.59]
[1762729649645,2.98,165.72,165.61,1.59]
[1762729650747,0.03866054,165.68,165.65,0.04133516]
[1762729651347,0.03866054,165.68,165.65,1.63133516]
[1762729652354,2.99866054,165.68,165.65,0.04133516]
[1762729654055,0.03866054,165.68,165.65,0.04133516]
[1762729654952,2.99866054,165.68,165.65,0.04133516]
[1762729655254,2.96,165.67,165.56,1.6]
[1762729655549,2.96,165.7,165.56,1.6]
[1762729656157,0.04338285,165.65,165.62,1.6]
[1762729656354,0.04338285,165.65,165.62,1.63908828]
[1762729657257,0.04338285,165.65,165.62,7.07418828]
[1762729657557,0.04338285,165.65,165.62,1.63908828]
[1762729657954,0.04338285,165.65,165.63,5.4348]
[1762729658153,0.04338285,165.65,165.64,1.6]
[1762729658559,0.04338285,165.65,165.62,0.03908828]
[1762729658747,0.04338285,165.65,165.62,1.63908828]
[1762729659448,2.96,165.75,165.63,1.6]
[1762729659653,2.96,165.75,165.68,5.4332]
[1762729660162,2.96,165.72,165.63,1.6]
[1762729660359,0.04195207,165.69,165.66,0.04296274]
[1762729661656,0.04195207,165.69,165.66,5.47686274]
[1762729661965,0.04195207,165.69,165.66,0.04296274]
[1762729662557,0.04195207,165.69,165.66,1.64296274]
[1762729662754,0.04195207,165.69,165.66,7.07686274]
[1762729663258,0.04195207,165.69,165.66,0.04296274]
[1762729663457,3.00195207,165.69,165.66,0.04296274]
[1762729664651,2.96,165.76,165.66,1.64296274]
[1762729664866,2.96,165.76,165.66,1.6]
[1762729665364,2.96,165.76,165.69,5.4331]
[1762729665860,2.9995616,165.74,165.71,0.04138426]
[1762729666061,2.99922394,165.74,165.71,0.04250952]
[1762729674763,0.03922394,165.74,165.71,1.64250952]
[1762729676072,0.03922394,165.74,165.72,5.432]
[1762729676572,0.03922394,165.74,165.71,7.07480952]
[1762729676774,0.03922394,165.74,165.71,5.47480952]
[1762729676970,3.08922394,165.74,165.71,0.04250952]
[1762729678167,0.03922394,165.74,165.71,0.04250952]
[1762729678569,3.08922394,165.74,165.71,0.04250952]
[1762729678768,3.08922394,165.74,165.64,1.6]
[1762729678984,8.482,165.73,165.64,1.6]
[1762729679968,0.0417885,165.7,165.67,0.04374933]
[1762729680569,3.0917885,165.7,165.67,0.04374933]
[1762729680779,0.0417885,165.7,165.67,1.64374933]
[1762729681270,0.0417885,165.7,165.68,7.0333]
[1762729681473,0.0417885,165.7,165.69,1.6]
[1762729682479,3.17,165.82,165.73,1.6]
[1762729682666,3.17,165.82,165.64,1.6]
[1762729682872,3.17,165.79,165.64,1.6]
[1762729683270,0.03861005,165.73,165.65,10.8689]
[1762729683479,3.17,165.83,165.73,1.6]
[1762729683678,3.17,165.87,165.73,1.6]
[1762729684069,3.17,165.87,165.78,1.6]
[1762729684580,0.04582778,165.84,165.81,0.0423459]
[1762729685471,3.21582778,165.84,165.81,0.0423459]
[1762729685671,3.17,165.83,165.7,1.6]
[1762729686071,3.17,165.82,165.7,1.6]
[1762729686678,0.04493525,165.78,165.74,0.04167141]
[1762729686867,0.04468807,165.78,165.74,0.0433841]
[1762729687072,0.04468807,165.78,165.74,1.6433841]
[1762729687271,3.17,165.91,165.81,1.6]
[1762729687583,3.17,165.91,165.76,1.6]
[1762729688284,0.04299082,165.85,165.82,0.0446264]
[1762729688473,3.21223017,165.85,165.82,0.04346287]
[1762729692179,0.04223017,165.85,165.82,1.64346287]
[1762729692380,168.70966703,166.08,165.82,1.64346287]
[1762729692381,3.17,166.01,165.82,1.64346287]
[1762729692580,3.17,166.01,165.82,1.6]
[1762729692786,3.17,165.97,165.82,1.6]
[1762729693272,0.04630057,165.91,165.88,0.03853605]
[1762729693472,3.17,165.95,165.82,1.6]
[1762729693675,0.03940483,165.88,165.85,1.63845863]
[1762729693882,0.03940483,165.88,165.86,5.4273]
[1762729694085,0.03940483,165.88,165.85,1.63845863]
[1762729694282,0.03940483,165.88,165.85,7.06615863]
[1762729694487,0.03940483,165.88,165.85,1.63845863]
[1762729694987,3.17,165.97,165.87,1.6]
[1762729695788,3.17,165.97,165.87,7.027]
[1762729695981,3.20968122,165.94,165.9,0.03928124]
[1762729696184,3.21585155,165.94,165.9,0.04436887]
[1762729697579,0.04585155,165.94,165.9,0.04436887]
[1762729699289,3.21585155,165.94,165.9,0.04436887]
[1762729700473,8.64105155,165.94,165.9,0.04436887]
[1762729700674,3.17,165.93,165.9,0.04436887]
[1762729701389,3.17,165.93,165.82,1.6]
[1762729701991,3.17,165.92,165.83,5.4285]
[1762729702291,3.2132292,165.89,165.86,0.03814463]
[1762729702483,0.0432292,165.89,165.86,0.03814463]
[1762729704495,3.2132292,165.89,165.86,0.03814463]
[1762729705696,3.17,165.88,165.8,5.4294]
[1762729706288,3.17,165.88,165.77,1.6]
[1762729706590,0.04198628,165.84,165.81,1.64058514]
[1762729706989,0.04198628,165.84,165.81,7.06948514]
[1762729707391,0.04198628,165.84,165.81,0.04058514]
[1762729707587,3.21198628,165.84,165.81,0.04058514]
[1762729711305,3.17,165.82,165.73,7.0316]
[1762729711508,3.17,165.82,165.73,1.6]
[1762729711695,3.17,165.82,165.66,1.56]
[1762729712007,3.17,165.79,165.7,5.4327]
[1762729712301,2.95,165.75,165.73,0.03892663]
[1762729712502,2.95,165.75,165.72,0.04034426]
[1762729712702,2.9882756,165.75,165.72,0.04034426]
[1762729715097,0.0382756,165.75,165.72,5.47214426]
[1762729715301,0.0382756,165.75,165.72,1.64034426]
[1762729716002,0.0382756,165.75,165.72,0.04034426]
[1762729716407,0.0382756,165.75,165.73,5.4316]
[1762729717203,0.0382756,165.75,165.73,7.0316]
[1762729718707,0.0382756,165.75,165.73,1.6]
[1762729719511,0.0382756,165.75,165.73,7.0316]
[1762729719705,0.0382756,165.75,165.74,1.6]
[1762729720712,0.0382756,165.75,165.72,0.04034426]
[1762729722016,0.0382756,165.75,165.73,5.4316]
[1762729722511,0.0382756,165.75,165.72,0.04034426]
[1762729722904,0.0382756,165.75,165.72,5.47234426]
[1762729723507,0.0382756,165.75,165.73,5.4316]
[1762729723705,0.0382756,165.75,165.74,1.6]
[1762729723902,2.95,165.84,165.74,1.6]
[1762729724107,2.95,165.84,165.8,5.4293]
[1762729725016,2.9896472,165.84,165.8,5.46908992]
[1762729725216,2.9896472,165.84,165.8,0.03978992]
[1762729732024,2.9896472,165.84,165.8,5.46918992]
[1762729733329,2.9896472,165.84,165.8,0.03978992]
[1762729734217,2.9896472,165.84,165.82,5.4287]
[1762729734218,0.0396472,165.84,165.82,5.4287]
[1762729735520,0.0396472,165.84,165.83,1.58]
[1762729735913,3.04,165.95,165.87,1.58]
[1762729736517,3.04,165.95,165.86,5.4275]
[1762729736712,3.04,165.95,165.83,1.58]
[1762729736918,3.04,165.9,165.87,0.04503569]
[1762729737222,3.08085946,165.9,165.87,0.04049566]
[1762729738418,0.04085946,165.9,165.87,0.04049566]
[1762729738919,0.04085946,165.9,165.87,5.46749566]
[1762729739121,0.04085946,165.9,165.88,1.58]
[1762729739617,0.04085946,165.9,165.89,1.58]
[1762729739823,3.04,165.97,165.89,1.58]
[1762729740618,3.04,165.97,165.85,1.58]
[1762729740918,0.04210599,165.93,165.89,1.62135415]
[1762729741119,0.04210599,165.93,165.89,0.04135415]
[1762729742727,0.04210599,165.93,165.89,5.46775415]
[1762729743226,0.04210599,165.93,165.9,5.4261]
[1762729743725,3.20210599,165.93,165.9,5.4261]
[1762729744325,0.04210599,165.93,165.91,5.4257]
[1762729744518,0.04210599,165.93,165.91,7.0057]
[1762729745030,3.16,166.01,165.95,5.4246]
[1762729745224,3.16,166.01,165.92,1.58]
[1762729745532,3.16,166.07,165.92,1.58]
[1762729745720,3.16,166.05,165.92,1.58]
[1762729745922,3.16,165.99,165.97,0.03930269]
[1762729746231,3.16,165.99,165.96,0.04588943]
[1762729746525,3.20077148,165.99,165.96,0.04119375]
[1762729747030,3.20077148,165.99,165.96,5.46539375]
[1762729747227,0.04077148,165.99,165.96,5.46539375]
[1762729747825,3.20077148,165.99,165.96,0.04119375]
[1762729749024,0.04077148,165.99,165.96,0.04119375]
[1762729749527,0.04077148,165.99,165.97,7.0038]
[1762729750620,0.04077148,165.99,165.98,1.58]
[1762729750818,3.16,166.07,166.02,5.4223]
[1762729751018,3.16,166.07,166.02,1.58]
[1762729751532,3.16,166.07,165.95,1.58]
[1762729751922,0.04412352,166.03,165.99,0.03846997]
[1762729752232,0.04412352,166.03,165.99,1.61846997]
[1762729752937,0.04412352,166.03,166.02,1.58]
[1762729753125,3.16,166.11,166.02,1.58]
[1762729753829,3.16,166.1,166.02,1.58]
[1762729754031,0.03806954,166.08,166.04,0.04307922]
[1762729754233,3.19806954,166.08,166.04,0.04307922]
[1762729754626,0.03806954,166.08,166.04,1.62307922]
[1762729755026,3.19806954,166.08,166.04,0.04307922]
[1762729759736,3.16,166.02,165.9,1.62]
[1762729760142,3.16,165.99,165.86,1.63]
[1762729760529,0.04215159,165.94,165.91,0.03905701]
[1762729760734,3.16,165.93,165.91,0.0387913]
[1762729760933,3.16,165.93,165.86,1.63]
[1762729761230,3.16,165.93,165.83,1.63]
[1762729761433,3.16,165.97,165.83,1.63]
[1762729761641,3.16,165.97,165.88,5.4267]
[1762729761840,3.16,165.96,165.83,1.63]
[1762729762043,3.16,165.9,165.88,0.03812666]
[1762729763636,3.16,165.89,165.82,1.38021]
[1762729764244,3.16,165.87,165.82,1.38021]
[1762729764647,4.26493506,165.89,165.83,0.03933405]
[1762729764648,3.16,165.85,165.83,0.03933405]
[1762729765643,3.16,165.85,165.82,1.38021]
[1762729765644,8.5879,165.85,165.82,0.05414915]
[1762729765942,3.16,165.84,165.72,1.63]
[1762729766342,3.16,165.84,165.77,5.4305]
[1762729766737,0.03928108,165.82,165.79,0.04006063]
[1762729766941,3.19928108,165.82,165.79,0.04006063]
[1762729767450,0.03928108,165.82,165.79,1.67006063]
[1762729767650,0.03928108,165.82,165.79,0.04006063]
[1762729767949,10.88,165.88,165.79,0.04006063]
[1762729768143,10.88,165.88,165.78,5.4299]
[1762729768850,0.04041418,165.85,165.81,0.04566819]
[1762729769648,0.04041418,165.85,165.71,3.1]
[1762729769837,3.16,165.85,165.71,3.1]
[1762729770043,3.16,165.85,165.74,5.4312]
[1762729770244,3.16,165.85,165.71,3.1]
[1762729770635,3.20297044,165.8,165.76,0.04406847]
[1762729770852,3.20297044,165.8,165.76,0.03861023]
[1762729773749,2.93,165.79,165.76,0.03861023]
[1762729774250,2.93,165.77,165.68,5.4334]
[1762729774843,2.93,165.76,165.68,5.4334]
[1762729775337,2.93,165.73,165.7,0.04027543]
[1762729775852,0.04369928,165.74,165.71,3.04]
[1762729776042,2.93,165.82,165.7,0.04027543]
[1762729776246,2.93,165.8,165.68,5.4334]
[1762729776441,2.93,165.8,165.67,3.04]
[1762729776640,2.93,165.78,165.68,3.04]
[1762729777141,0.03873051,165.75,165.71,3.07832756]
[1762729777344,2.96873051,165.75,165.71,0.03832756]
[1762729779350,2.96873051,165.75,165.57,204.85564303]
[1762729779351,2.93,165.73,165.6,3.04]
[1762729779951,2.93,165.72,165.63,5.4349]
[1762729780154,2.93,165.72,165.6,3.04]
[1762729780458,2.97337088,165.68,165.64,0.04472488]
[1762729782762,8.40707088,165.68,165.64,0.04472488]
[1762729783056,2.93,165.67,165.64,0.04472488]
[1762729784764,2.93,165.67,165.55,149.50454944]
[1762729784957,8.3638,165.67,165.55,149.50454944]
[1762729785156,2.93,165.66,165.55,149.50454944]
[1762729785659,0.04449417,165.62,165.59,0.04581427]
[1762729787358,3.00449417,165.62,165.59,0.04581427]
[1762729788556,2.96,165.61,165.53,5.4382]
[1762729789169,2.96,165.6,165.51,8.3489]
[1762729789467,2.9991869,165.57,165.54,0.03975026]
[1762729789661,3.00177659,165.57,165.54,0.04409585]
[1762729797371,2.96,165.64,165.54,2.95409585]
[1762729797576,2.96,165.64,165.57,5.4368]
[1762729797766,2.96,165.64,165.54,2.91]
[1762729797962,2.96,165.63,165.5,2.91]
[1762729798162,2.96,165.62,165.5,2.91]
[1762729798364,0.04477783,165.58,165.54,0.04214872]
[1762729798674,2.96,165.57,165.54,0.04214872]
[1762729800375,2.96,165.56,165.54,0.04214872]
[1762729801282,3.00477783,165.58,165.54,0.04214872]
[1762729801777,2.96,165.56,165.54,0.04214872]
[1762729801978,2.96,165.56,165.42,3.12]
[1762729802282,3.16,165.53,165.46,5.4404]
[1762729802478,3.16,165.53,165.45,3.12]
[1762729802680,3.16,165.51,165.45,3.12]
[1762729802872,3.16,165.51,165.43,5.4416]
[1762729803067,3.20028565,165.49,165.37,3.12]
[1762729803276,3.16,165.49,165.37,3.12]
[1762729803677,3.16,165.49,165.39,5.4429]
[1762729803979,3.16,165.49,165.37,3.12]
[1762729804181,3.16,165.46,165.39,5.4427]
[1762729804380,3.20283972,165.45,165.41,0.04469217]
[1762729804974,0.04283972,165.45,165.41,3.16469217]
[1762729805783,0.04283972,165.45,165.42,3.12]
[1762729806281,11.5,165.53,165.42,3.12]
[1762729806282,16.9384,165.53,165.46,5.4404]
[1762729806477,11.5,165.53,165.46,5.4404]
[1762729806775,3.16,165.53,165.43,3.12]
[1762729807282,0.03972539,165.5,165.46,0.03897481]
[1762729807473,3.19972539,165.5,165.46,0.03897481]
[1762729808076,0.03972539,165.5,165.46,3.15897481]
[1762729809183,0.03972539,165.5,165.47,8.5601]
[1762729809386,0.03972539,165.5,165.48,3.12]
[1762729809780,3.19972539,165.5,165.46,0.03897481]
[1762729810184,3.16,165.49,165.46,0.03897481]
[1762729812493,3.16,165.47,165.38,5.4431]
[1762729812690,3.16,165.47,165.36,3.12]
[1762729813085,8.6009,165.46,165.4,5.4425]
[1762729813294,3.16,165.45,165.36,3.12]
[1762729813691,0.04195604,165.42,165.39,0.04238224]
[1762729814394,3.20195604,165.42,165.39,0.04238224]
[1762729814994,3.20195604,165.42,165.31,3.12]
[1762729815194,3.16,165.38,165.31,3.12]
[1762729815393,3.16,165.38,165.2,317.47721033]
[1762729815394,3.16,165.38,165.23,3.12]
[1762729815887,3.16,165.38,165.29,0.04111486]
[1762729816091,3.16,165.31,165.29,0.04111486]
[1762729817297,0.04149826,165.32,165.29,0.04111486]
[1762729822300,0.04149826,165.32,165.29,8.60711486]
[1762729822605,0.04149826,165.32,165.3,3.12]
[1762729823104,0.04149826,165.32,165.3,8.5656]
[1762729823505,0.04149826,165.32,165.31,3.12]
[1762729823707,3.16,165.38,165.31,3.12]
[1762729824698,0.04236888,165.36,165.33,3.16198729]
[1762729824898,0.04537133,165.36,165.33,3.16261916]
[1762729825503,0.04537133,165.36,165.33,8.60731916]
[1762729825895,0.04537133,165.36,165.33,3.16261916]
[1762729826707,3.20537133,165.36,165.33,0.04261916]
[1762729830108,0.04537133,165.36,165.33,3.16261916]
[1762729830408,3.20537133,165.36,165.33,0.04261916]
[1762729833705,0.04537133,165.36,165.33,0.04261916]
[1762729833905,3.13537133,165.36,165.33,0.04261916]
[1762729836910,5.4442,165.35,165.33,0.04261916]
[1762729837106,3.09,165.34,165.27,5.4468]
[1762729837307,3.09,165.34,165.25,3.14]
[1762729837514,8.5348,165.34,165.25,3.14]
[1762729837815,3.09,165.33,165.25,3.14]
[1762729838019,3.13117955,165.31,165.27,0.0433719]
[1762729838208,0.04117955,165.31,165.27,3.1833719]
[1762729838717,3.13117955,165.31,165.27,3.1833719]
[1762729838917,3.13117955,165.31,165.27,0.0433719]
[1762729839212,3.13117955,165.31,165.27,3.1833719]
[1762729839418,0.04117955,165.31,165.28,3.14]
[1762729839715,3.09,165.41,165.28,3.14]
[1762729839916,3.09,165.39,165.31,3.14]
[1762729840510,3.09,165.39,165.34,3.14]
[1762729840715,0.04351697,165.38,165.35,3.18198983]
[1762729841017,3.13254593,165.38,165.35,0.04617242]
[1762729843820,3.13254593,165.38,165.27,3.14]
[1762729844008,3.09,165.38,165.27,3.14]
[1762729844615,0.04441928,165.34,165.31,0.04304838]
[1762729846312,3.13441928,165.34,165.31,0.04304838]
[1762729847911,3.13441928,165.34,165.23,3.03]
[1762729848113,8.5347,165.34,165.23,3.03]
[1762729848615,3.11,165.38,165.27,3.03]
[1762729848820,0.04242898,165.34,165.27,3.03]
[1762729849616,0.04242898,165.34,165.31,5.4454]
[1762729850211,0.04242898,165.34,165.32,3.03]
[1762729850416,0.04242898,165.34,165.31,8.4754]
[1762729851016,0.04242898,165.34,165.31,3.03]
[1762729851222,3.15242898,165.34,165.29,5.4461]
[1762729851419,3.15146901,165.33,165.29,5.4461]
[1762729851608,3.15498327,165.33,165.29,5.4461]
[1762729852312,3.15498327,165.33,165.29,8.4761]
[1762729852627,0.04498327,165.33,165.3,3.03]
[1762729852920,0.04359674,165.33,165.3,3.03]
[1762729853817,0.04359674,165.33,165.31,8.4754]
[1762729854018,0.04343502,165.34,165.32,3.03]
[1762729854214,0.04339463,165.35,165.34,5.4444]
[1762729855618,3.11,165.34,165.15,3.03]
[1762729855922,57.5851627,165.35,165.15,3.03]
[1762729855923,3.15060368,165.26,165.15,3.03]
[1762729856118,0.0436755,165.22,165.15,3.03]
[1762729857217,0.0436755,165.22,165.2,3.03]
[1762729857418,3.11,165.36,165.21,3.03]
[1762729857618,3.11,165.36,165.28,3.03]
[1762729857818,3.11,165.4,165.28,3.03]
[1762729858425,3.11,165.4,165.22,91.91296807]
[1762729858426,0.04105994,165.36,165.32,0.0393753]
[1762729858632,0.04105994,165.36,165.33,3.03]
[1762729859626,0.04105994,165.36,165.32,0.0393753]
[1762729859816,3.15105994,165.36,165.32,0.0393753]
[1762729860816,0.04105994,165.36,165.32,3.0693753]
[1762729861012,3.15105994,165.36,165.32,0.0393753]
[1762729864030,2.93,165.35,165.24,3.18]
[1762729865024,2.93,165.26,165.18,3.18]
[1762729865221,0.03891072,165.24,165.18,3.18]
[1762729866322,2.96891072,165.24,165.12,3.18]
[1762729866519,0.04270301,165.2,165.12,3.18]
[1762729866720,0.04270301,165.2,165.17,8.63]
[1762729867421,0.04270301,165.2,165.17,3.18]
[1762729867926,0.04270301,165.2,165.15,5.4508]
[1762729868227,0.04270301,165.2,165.15,8.6308]
[1762729868414,0.04270301,165.2,165.17,3.18]
[1762729869727,2.97270301,165.2,165.11,3.18]
[1762729870427,2.97270301,165.2,165.12,5.4515]
[1762729870927,2.97270301,165.2,165.11,3.18]
[1762729871923,2.93,165.19,165.11,8.6319]
[1762729872133,0.039106,165.17,165.11,8.6319]
[1762729872834,2.969106,165.17,165.07,3.18]
[1762729873127,0.03945682,165.14,165.1,5.4522]
[1762729873427,0.03945682,165.14,165.11,3.18]
[1762729873728,0.03945682,165.14,165.11,8.6319]
[1762729874632,0.03945682,165.14,165.11,5.4519]
[1762729874932,0.03945682,165.14,165.12,8.6316]
[1762729875123,0.04162744,165.15,165.13,3.18]
[1762729875322,0.03844219,165.16,165.13,3.18]
[1762729876327,0.03844219,165.16,165.07,3.18]
[1762729876534,0.0450928,165.13,165.07,3.18]
[1762729877826,0.0450928,165.13,165.11,8.6319]
[1762729879329,0.0450928,165.13,165.08,5.453]
[1762729879531,37.07,165.28,165.01,10.9109]
[1762729879532,0.04255335,165.12,165.09,3.18]
[1762729879733,0.04566149,165.12,165.09,3.18]
[1762729879938,0.04566149,165.12,165.11,3.18]
[1762729880228,2.93,165.2,165.11,3.18]
[1762729880429,2.93,165.2,165.15,8.6306]
[1762729880624,2.93,165.26,165.15,3.18]
[1762729881037,2.93,165.26,165.18,5.4496]
[1762729881235,2.93,165.23,165.2,0.03916423]
[1762729881833,0.04392215,165.24,165.2,0.03916423]
[1762729883134,0.04392215,165.24,165.2,3.21916423]
[1762729883333,0.04392215,165.24,165.09,15.1982169]
[1762729883334,2.93,165.23,165.11,3.18]
[1762729883836,2.93,165.22,165.14,5.4509]
[1762729884140,0.2711,165.25,165.11,3.18]
[1762729884435,0.04339746,165.2,165.18,3.18]
[1762729884829,0.04339746,165.2,165.17,5.45]
[1762729886133,0.04339746,165.2,165.14,5.4509]
[1762729886533,0.04339746,165.2,165.16,5.4503]
[1762729886835,0.04339746,165.2,165.13,3.18]
[1762729887038,0.04339746,165.2,165.14,3.18]
[1762729887333,0.04531453,165.19,165.14,3.18]
[1762729887723,2.97531453,165.19,165.1,3.18]
[1762729887933,0.0461941,165.16,165.1,3.18]
[1762729888135,0.0461941,165.16,165.1,8.6323]
[1762729888330,2.9761941,165.16,165.1,5.4523]
[1762729888733,2.9761941,165.16,165.11,5.452]
[1762729888935,0.04526306,165.15,165.11,5.452]
[1762729889532,0.04526306,165.15,165.06,3.18]
[1762729889533,0.04526306,165.15,165.12,8.6315]
[1762729889840,0.03922684,165.15,165.12,5.4515]
[1762729890340,0.03922684,165.15,165.06,3.18]
[1762729890538,0.04531455,165.12,165.06,3.18]
[1762729890942,0.04531455,165.12,165.1,8.6323]
[1762729891737,0.04531455,165.12,165.1,3.18]
[1762729892235,0.04531455,165.12,165.1,8.6323]
[1762729892533,0.04531455,165.12,165.11,3.02]
[1762729898642,3.15,165.23,165.14,3.02]
[1762729899348,3.15,165.23,165.18,5.4497]
[1762729899742,3.19560978,165.22,165.19,0.04329919]
[1762729900347,0.04560978,165.22,165.19,3.06329919]
[1762729900546,0.04560978,165.22,165.19,0.04329919]
[1762729900950,0.04560978,165.22,165.19,3.06329919]
[1762729901840,0.04560978,165.22,165.2,5.449]
[1762729903045,3.19560978,165.22,165.09,3.76570772]
[1762729903349,3.15,165.22,165.1,3.02]
[1762729904147,0.040334,165.18,165.1,3.02]
[1762729904349,0.040334,165.18,165.14,5.451]
[1762729905853,3.190334,165.18,165.14,5.451]
[1762729906052,3.190334,165.18,165.15,5.4506]
[1762729906849,3.190334,165.18,165.13,3.02]
[1762729907155,2.98430237,165.17,165.09,3.08]
[1762729907349,0.04491431,165.15,165.14,8.531]
[1762729907555,0.04532858,165.16,165.14,3.08]
[1762729907750,0.04162488,165.17,165.14,3.08]
[1762729907952,0.04162488,165.17,165.15,5.4508]
[1762729908854,0.04162488,165.17,165.16,3.08]
[1762729909256,0.04162488,165.17,165.15,5.4508]
[1762729910455,0.04162488,165.17,165.16,3.08]
[1762729912060,0.04162488,165.17,165.15,5.4508]
[1762729912356,0.04162488,165.17,165.16,3.08]